[Event "*** Titled Tuesday Blitz"]
[Site "Chess.com"]
[Date "2021.02.02"]
[Round "4"]
[White "dopolian"]
[Black "Mambastik-Fantastic"]
[Result "1-0"]
[WhiteElo "2445"]
[BlackElo "2262"]
[TimeControl "180+1"]
[EndTime "10:42:54 PST"]
[Termination "dopolian won by resignation"]

1. Nf3 {[%clk 0:03:00.9]} 1... d5 {[%clk 0:02:59.6]} 2. g3 {[%clk 0:02:58.4]}
2... Bg4 {[%clk 0:02:58.8]} 3. Bg2 {[%clk 0:02:58.1]} 3... Nd7 {[%clk
0:02:58.9]} 4. d4 {[%clk 0:02:57.3]} 4... Ngf6 {[%clk 0:02:59]} 5. O-O {[%clk
0:02:56.9]} 5... e6 {[%clk 0:02:59.3]} 6. b3 {[%clk 0:02:55.7]} 6... c6 {[%clk
0:02:58.8]} 7. Bb2 {[%clk 0:02:55.5]} 7... Be7 {[%clk 0:02:57.9]} 8. c4 {[%clk
0:02:54.9]} 8... O-O {[%clk 0:02:58]} 9. Nbd2 {[%clk 0:02:50.1]} 9... a5 {[%clk
0:02:58.1]} 10. a3 {[%clk 0:02:48.9]} 10... Bh5 {[%clk 0:02:58.2]} 11. Re1
{[%clk 0:02:44.8]} 11... Qb8 {[%clk 0:02:58.2]} 12. e3 {[%clk 0:02:16.2]} 12...
Rd8 {[%clk 0:02:56.4]} 13. h3 {[%clk 0:02:15]} 13... a4 {[%clk 0:02:51.7]} 14.
b4 {[%clk 0:02:13.1]} 14... Ne4 {[%clk 0:02:46.4]} 15. Qc2 {[%clk 0:01:57.2]}
15... Bg6 {[%clk 0:02:43.6]} 16. Nxe4 {[%clk 0:01:57.3]} 16... Bxe4 {[%clk
0:02:41]} 17. Qe2 {[%clk 0:01:55.9]} 17... Nb6 {[%clk 0:02:35.1]} 18. Nd2 {[%clk
0:01:52.3]} 18... Bxg2 {[%clk 0:02:26.3]} 19. Kxg2 {[%clk 0:01:53.2]} 19... Nxc4
{[%clk 0:02:24.8]} 20. Nxc4 {[%clk 0:01:54.1]} 20... dxc4 {[%clk 0:02:25.1]} 21.
Qxc4 {[%clk 0:01:55]} 21... Bf6 {[%clk 0:02:05.7]} 22. Rad1 {[%clk 0:01:48.8]}
22... h5 {[%clk 0:01:56.4]} 23. h4 {[%clk 0:01:46.7]} 23... Qc8 {[%clk
0:01:43.8]} 24. Rd3 {[%clk 0:01:41.3]} 24... b5 {[%clk 0:01:42.8]} 25. Qc2
{[%clk 0:01:36.9]} 25... Qd7 {[%clk 0:01:42.7]} 26. Rc1 {[%clk 0:01:32.5]} 26...
Qd5+ {[%clk 0:01:41.7]} 27. Kg1 {[%clk 0:01:31.1]} 27... Rac8 {[%clk 0:01:30.2]}
28. Rc3 {[%clk 0:01:30.1]} 28... Rd6 {[%clk 0:01:21.3]} 29. Rc5 {[%clk 0:01:18]}
29... Qf3 {[%clk 0:01:18.5]} 30. Qd1 {[%clk 0:01:07.5]} 30... Qe4 {[%clk
0:00:58.4]} 31. Qxh5 {[%clk 0:01:01.2]} 31... g6 {[%clk 0:00:58.3]} 32. Qd1
{[%clk 0:00:51.8]} 32... Kg7 {[%clk 0:00:56.8]} 33. Qc2 {[%clk 0:00:48.2]} 33...
Qf3 {[%clk 0:00:56.2]} 34. Qd1 {[%clk 0:00:27.6]} 34... Qe4 {[%clk 0:00:55.7]}
35. Qe2 {[%clk 0:00:22.5]} 35... Rh8 {[%clk 0:00:54.5]} 36. f3 {[%clk
0:00:19.5]} 36... Qf5 {[%clk 0:00:38.8]} 37. Rxf5 {[%clk 0:00:19]} 37... gxf5
{[%clk 0:00:39.7]} 38. f4 {[%clk 0:00:17.3]} 38... Kf8 {[%clk 0:00:36.5]} 39.
Qf3 {[%clk 0:00:13.7]} 39... Rg8 {[%clk 0:00:33.4]} 40. Kf2 {[%clk 0:00:12.5]}
40... Kg7 {[%clk 0:00:27.7]} 41. Rxc6 {[%clk 0:00:12.4]} 41... Rd5 {[%clk
0:00:28.1]} 42. Rc5 {[%clk 0:00:12.2]} 42... Rd6 {[%clk 0:00:26.6]} 43. Qb7
{[%clk 0:00:10.3]} 43... Rgd8 {[%clk 0:00:24]} 44. Rc7 {[%clk 0:00:09.2]} 44...
Rf8 {[%clk 0:00:23.4]} 45. Rd7 {[%clk 0:00:09.2]} 45... Rxd7 {[%clk 0:00:22.3]}
46. Qxd7 {[%clk 0:00:10.1]} 46... Rd8 {[%clk 0:00:22.5]} 47. Qc7 {[%clk
0:00:09.8]} 47... Kf8 {[%clk 0:00:20.7]} 48. d5 {[%clk 0:00:08.1]} 48... Be7
{[%clk 0:00:16.6]} 49. dxe6 {[%clk 0:00:08]} 49... fxe6 {[%clk 0:00:16.7]} 50.
Be5 {[%clk 0:00:06.2]} 50... Ke8 {[%clk 0:00:16.5]} 51. Qc6+ {[%clk 0:00:05.9]}
51... Kf7 {[%clk 0:00:16.3]} 52. Qxb5 {[%clk 0:00:06.4]} 52... Rd2+ {[%clk
0:00:15.8]} 53. Kf3 {[%clk 0:00:07.1]} 53... Ra2 {[%clk 0:00:16.5]} 54. Qxa4
{[%clk 0:00:06.4]} 54... Rd2 {[%clk 0:00:14.3]} 55. Qb3 {[%clk 0:00:05.9]} 55...
Rh2 {[%clk 0:00:13.5]} 56. a4 {[%clk 0:00:04.2]} 56... Rh1 {[%clk 0:00:13.3]}
57. a5 {[%clk 0:00:04.1]} 57... Rf1+ {[%clk 0:00:13.8]} 58. Kg2 {[%clk
0:00:04.5]} 58... Re1 {[%clk 0:00:13.6]} 59. a6 {[%clk 0:00:03.9]} 59... Re2+
{[%clk 0:00:14.1]} 60. Kf3 {[%clk 0:00:04.3]} 60... Re1 {[%clk 0:00:14]} 61. a7
{[%clk 0:00:04.5]} 61... Rf1+ {[%clk 0:00:14.4]} 62. Kg2 {[%clk 0:00:04.1]}
62... Re1 {[%clk 0:00:14.6]} 63. a8=Q {[%clk 0:00:03.9]} 1-0

[Event "*** Titled Tuesday Blitz"]
[Site "Chess.com"]
[Date "2021.02.02"]
[Round "4"]
[White "StockholmMissile"]
[Black "Sam_ChessMood"]
[Result "0-1"]
[WhiteElo "2522"]
[BlackElo "2832"]
[TimeControl "180+1"]
[EndTime "10:42:55 PST"]
[Termination "Sam_ChessMood won on time"]

1. d4 {[%clk 0:03:00.9]} 1... Nf6 {[%clk 0:02:59.6]} 2. c4 {[%clk 0:03:00.9]}
2... e6 {[%clk 0:03:00]} 3. Nf3 {[%clk 0:03:01]} 3... d5 {[%clk 0:02:59.5]} 4.
Bg5 {[%clk 0:03:01]} 4... dxc4 {[%clk 0:02:58.6]} 5. e4 {[%clk 0:03:00.1]} 5...
c5 {[%clk 0:02:58.2]} 6. Bxc4 {[%clk 0:02:46.5]} 6... cxd4 {[%clk 0:02:58]} 7.
O-O {[%clk 0:02:46]} 7... Nc6 {[%clk 0:02:55.4]} 8. e5 {[%clk 0:02:29.6]} 8...
h6 {[%clk 0:02:54.7]} 9. Bh4 {[%clk 0:02:29.7]} 9... g5 {[%clk 0:02:54.4]} 10.
Bg3 {[%clk 0:02:29.7]} 10... Ne4 {[%clk 0:02:49.8]} 11. Nbd2 {[%clk 0:02:26.5]}
11... Nxg3 {[%clk 0:02:45.9]} 12. fxg3 {[%clk 0:02:26]} 12... Bg7 {[%clk
0:02:44.2]} 13. Qe2 {[%clk 0:02:23.5]} 13... O-O {[%clk 0:02:35.5]} 14. Qe4
{[%clk 0:02:21.2]} 14... Ne7 {[%clk 0:01:51.7]} 15. Nxd4 {[%clk 0:02:15.7]}
15... Bd7 {[%clk 0:01:32]} 16. N2f3 {[%clk 0:02:03.2]} 16... Qb6 {[%clk
0:01:08.7]} 17. Kh1 {[%clk 0:01:55.2]} 17... Bc6 {[%clk 0:01:05.5]} 18. Nxc6
{[%clk 0:01:49.8]} 18... Qxc6 {[%clk 0:01:06.4]} 19. Qe2 {[%clk 0:01:39.4]}
19... Rad8 {[%clk 0:00:55.8]} 20. h3 {[%clk 0:01:14.8]} 20... Nf5 {[%clk
0:00:49]} 21. Kh2 {[%clk 0:01:09.8]} 21... Nd4 {[%clk 0:00:46.1]} 22. Nxd4
{[%clk 0:00:59.4]} 22... Rxd4 {[%clk 0:00:47]} 23. Bb3 {[%clk 0:00:56.6]} 23...
Re4 {[%clk 0:00:34.1]} 24. Qd3 {[%clk 0:00:56.4]} 24... Rxe5 {[%clk 0:00:31.1]}
25. Rad1 {[%clk 0:00:50.8]} 25... b5 {[%clk 0:00:21.4]} 26. Rf2 {[%clk
0:00:43.2]} 26... a5 {[%clk 0:00:20.8]} 27. a3 {[%clk 0:00:32.5]} 27... a4
{[%clk 0:00:17.1]} 28. Ba2 {[%clk 0:00:32.3]} 28... Qe4 {[%clk 0:00:17]} 29. Qd7
{[%clk 0:00:25.5]} 29... Rf5 {[%clk 0:00:17.3]} 30. Rdf1 {[%clk 0:00:18.3]}
30... Rxf2 {[%clk 0:00:14.6]} 31. Rxf2 {[%clk 0:00:19.2]} 31... Be5 {[%clk
0:00:05.6]} 32. Bxe6 {[%clk 0:00:10.6]} 32... Bxg3+ {[%clk 0:00:03.9]} 33. Kxg3
{[%clk 0:00:11.5]} 33... Qxe6 {[%clk 0:00:04.2]} 34. Qxe6 {[%clk 0:00:08.8]}
34... fxe6 {[%clk 0:00:05.1]} 35. Re2 {[%clk 0:00:09.4]} 35... Rc8 {[%clk
0:00:03.1]} 36. Re5 {[%clk 0:00:09.4]} 36... Rc2 {[%clk 0:00:02.6]} 37. Rxb5
{[%clk 0:00:09]} 37... Kf7 {[%clk 0:00:03.1]} 38. Rb4 {[%clk 0:00:08.9]} 38...
Kf6 {[%clk 0:00:03.7]} 39. Rxa4 {[%clk 0:00:09]} 39... Rxb2 {[%clk 0:00:04.3]}
40. Ra6 {[%clk 0:00:09.1]} 40... h5 {[%clk 0:00:03.6]} 41. a4 {[%clk 0:00:07.9]}
41... h4+ {[%clk 0:00:02.8]} 42. Kf3 {[%clk 0:00:08.2]} 42... Ra2 {[%clk
0:00:03.6]} 43. Ra8 {[%clk 0:00:07.9]} 43... Ke5 {[%clk 0:00:03.7]} 44. a5
{[%clk 0:00:07.7]} 44... Ra3+ {[%clk 0:00:03.7]} 45. Kf2 {[%clk 0:00:06.9]}
45... Kf4 {[%clk 0:00:04]} 46. Rf8+ {[%clk 0:00:06.3]} 46... Ke4 {[%clk
0:00:04.3]} 47. Ra8 {[%clk 0:00:02.2]} 47... e5 {[%clk 0:00:04.7]} 48. a6 {[%clk
0:00:01.8]} 48... Ra2+ {[%clk 0:00:04.7]} 49. Kg1 {[%clk 0:00:02.1]} 49... Kf4
{[%clk 0:00:05.1]} 0-1

[Event "*** Titled Tuesday Blitz"]
[Site "Chess.com"]
[Date "2021.02.02"]
[Round "4"]
[White "Monmoransy"]
[Black "VALPARAISO37"]
[Result "1-0"]
[WhiteElo "2617"]
[BlackElo "2447"]
[TimeControl "180+1"]
[EndTime "10:42:55 PST"]
[Termination "Monmoransy won by checkmate"]

1. e4 {[%clk 0:01:44.9]} 1... e5 {[%clk 0:02:57.3]} 2. Nf3 {[%clk 0:01:42.7]}
2... Nc6 {[%clk 0:02:56.4]} 3. Bb5 {[%clk 0:01:42.6]} 3... a6 {[%clk 0:02:56.1]}
4. Bxc6 {[%clk 0:01:42.4]} 4... dxc6 {[%clk 0:02:56.3]} 5. Nc3 {[%clk 0:01:43]}
5... Bd6 {[%clk 0:02:56.6]} 6. d4 {[%clk 0:01:43.1]} 6... exd4 {[%clk
0:02:57.1]} 7. Qxd4 {[%clk 0:01:43.6]} 7... f6 {[%clk 0:02:57.4]} 8. Be3 {[%clk
0:01:43.6]} 8... Ne7 {[%clk 0:02:57.6]} 9. Nd2 {[%clk 0:01:44.1]} 9... Ng6
{[%clk 0:02:57.1]} 10. Nc4 {[%clk 0:01:42.7]} 10... Be7 {[%clk 0:02:56.5]} 11.
Qxd8+ {[%clk 0:01:41.4]} 11... Kxd8 {[%clk 0:02:56.1]} 12. O-O-O+ {[%clk
0:01:41]} 12... Ke8 {[%clk 0:02:56.2]} 13. f3 {[%clk 0:01:35.5]} 13... b6 {[%clk
0:02:51.2]} 14. Bf2 {[%clk 0:01:29]} 14... Be6 {[%clk 0:02:50.5]} 15. Ne3 {[%clk
0:01:28.8]} 15... Bc5 {[%clk 0:02:46.4]} 16. a3 {[%clk 0:01:27]} 16... Kf7
{[%clk 0:02:44.5]} 17. Ng4 {[%clk 0:01:25.4]} 17... Be7 {[%clk 0:02:23.5]} 18.
Ne3 {[%clk 0:01:24.8]} 18... Bc5 {[%clk 0:02:21.2]} 19. Rhf1 {[%clk 0:01:22.9]}
19... Rhd8 {[%clk 0:02:20.2]} 20. Rxd8 {[%clk 0:01:18.7]} 20... Rxd8 {[%clk
0:02:19.1]} 21. Rd1 {[%clk 0:01:19.1]} 21... Bd6 {[%clk 0:02:10.1]} 22. Bg3
{[%clk 0:01:18]} 22... Ke7 {[%clk 0:02:07.6]} 23. Ne2 {[%clk 0:01:15.7]} 23...
Bc5 {[%clk 0:02:05.9]} 24. Bf2 {[%clk 0:01:10.6]} 24... Bd6 {[%clk 0:02:03.6]}
25. Bg3 {[%clk 0:01:09]} 25... Bc5 {[%clk 0:02:02]} 26. Nf1 {[%clk 0:01:07.7]}
26... Bd6 {[%clk 0:01:50.2]} 27. Nd4 {[%clk 0:01:07]} 27... Bd7 {[%clk
0:01:43.8]} 28. Ne3 {[%clk 0:01:06.1]} 28... Bxg3 {[%clk 0:01:37.4]} 29. Ndf5+
{[%clk 0:01:02.9]} 29... Kf8 {[%clk 0:01:29.8]} 30. hxg3 {[%clk 0:01:02.9]}
30... Ne5 {[%clk 0:01:25.8]} 31. f4 {[%clk 0:00:56.1]} 31... Nf7 {[%clk
0:01:22.7]} 32. Rd3 {[%clk 0:00:53.3]} 32... Be6 {[%clk 0:01:17.7]} 33. Rxd8+
{[%clk 0:00:50]} 33... Nxd8 {[%clk 0:01:17]} 34. Kd2 {[%clk 0:00:49.2]} 34... g6
{[%clk 0:01:15.1]} 35. Nd4 {[%clk 0:00:48.4]} 35... Bd7 {[%clk 0:01:15.3]} 36.
b4 {[%clk 0:00:46.1]} 36... Ne6 {[%clk 0:01:12.9]} 37. Nxe6+ {[%clk 0:00:45.3]}
37... Bxe6 {[%clk 0:01:13]} 38. g4 {[%clk 0:00:42.7]} 38... Bf7 {[%clk
0:01:12.4]} 39. Kd3 {[%clk 0:00:39.9]} 39... Ke7 {[%clk 0:01:12.5]} 40. g3
{[%clk 0:00:38.8]} 40... Kd6 {[%clk 0:01:12.3]} 41. Nc4+ {[%clk 0:00:34.1]}
41... Ke7 {[%clk 0:01:09.8]} 42. f5 {[%clk 0:00:32.7]} 42... g5 {[%clk
0:01:08.2]} 43. Kd4 {[%clk 0:00:30.8]} 43... h5 {[%clk 0:01:04.5]} 44. gxh5
{[%clk 0:00:28.4]} 44... Bxh5 {[%clk 0:01:04.5]} 45. e5 {[%clk 0:00:28.6]} 45...
Bd1 {[%clk 0:01:03.4]} 46. Ne3 {[%clk 0:00:25.6]} 46... Be2 {[%clk 0:01:00]} 47.
c4 {[%clk 0:00:23.1]} 47... Bf3 {[%clk 0:00:59.7]} 48. c5 {[%clk 0:00:22.7]}
48... b5 {[%clk 0:01:00.1]} 49. exf6+ {[%clk 0:00:18.5]} 49... Kxf6 {[%clk
0:00:59.4]} 50. g4 {[%clk 0:00:17.8]} 50... Be2 {[%clk 0:00:58.7]} 51. Ke4
{[%clk 0:00:17.3]} 51... Kf7 {[%clk 0:00:46.6]} 52. Ke5 {[%clk 0:00:17.3]} 52...
Bf3 {[%clk 0:00:45]} 53. f6 {[%clk 0:00:17.3]} 53... Kg6 {[%clk 0:00:26.8]} 54.
Ke6 {[%clk 0:00:17.3]} 54... Be4 {[%clk 0:00:20.6]} 55. f7 {[%clk 0:00:16.1]}
55... Bf5+ {[%clk 0:00:15.3]} 56. Nxf5 {[%clk 0:00:13.8]} 56... a5 {[%clk
0:00:15.6]} 57. f8=Q {[%clk 0:00:13.5]} 57... Kh7 {[%clk 0:00:12.9]} 58. Qh6+
{[%clk 0:00:12.1]} 58... Kg8 {[%clk 0:00:11]} 59. Kf6 {[%clk 0:00:11.5]} 59...
axb4 {[%clk 0:00:09.9]} 60. Qg6+ {[%clk 0:00:11.1]} 60... Kh8 {[%clk 0:00:09.5]}
61. Qg7# {[%clk 0:00:10.1]} 1-0

[Event "*** Titled Tuesday Blitz"]
[Site "Chess.com"]
[Date "2021.02.02"]
[Round "4"]
[White "Sychev_Klementy"]
[Black "elohunter1999"]
[Result "1-0"]
[WhiteElo "2900"]
[BlackElo "2660"]
[TimeControl "180+1"]
[EndTime "10:42:57 PST"]
[Termination "Sychev_Klementy won by resignation"]

1. e4 {[%clk 0:02:57.6]} 1... e5 {[%clk 0:02:59.3]} 2. Nf3 {[%clk 0:02:57.4]}
2... d6 {[%clk 0:02:59.4]} 3. Bc4 {[%clk 0:02:55]} 3... Nf6 {[%clk 0:02:53]} 4.
d3 {[%clk 0:02:52]} 4... Be7 {[%clk 0:02:50.9]} 5. O-O {[%clk 0:02:51.5]} 5...
O-O {[%clk 0:02:50.7]} 6. Bb3 {[%clk 0:02:51.7]} 6... Nbd7 {[%clk 0:02:48.9]} 7.
c3 {[%clk 0:02:51.5]} 7... c6 {[%clk 0:02:46.1]} 8. Re1 {[%clk 0:02:49.6]} 8...
Re8 {[%clk 0:02:40.5]} 9. h3 {[%clk 0:02:46.9]} 9... Nf8 {[%clk 0:02:21.3]} 10.
Nbd2 {[%clk 0:02:35.7]} 10... Ng6 {[%clk 0:02:20.5]} 11. Nf1 {[%clk 0:02:36]}
11... h6 {[%clk 0:02:19.9]} 12. Ng3 {[%clk 0:02:35.4]} 12... Qc7 {[%clk
0:02:13.8]} 13. Be3 {[%clk 0:02:34.1]} 13... d5 {[%clk 0:02:10.2]} 14. exd5
{[%clk 0:01:53.7]} 14... cxd5 {[%clk 0:02:06]} 15. d4 {[%clk 0:01:46.5]} 15...
e4 {[%clk 0:02:04]} 16. Ne5 {[%clk 0:01:45.5]} 16... Nxe5 {[%clk 0:02:01.2]} 17.
dxe5 {[%clk 0:01:45.6]} 17... Qxe5 {[%clk 0:02:00.3]} 18. Bd4 {[%clk 0:01:46]}
18... Qc7 {[%clk 0:01:36.2]} 19. Bxf6 {[%clk 0:01:45]} 19... Bxf6 {[%clk
0:01:37.1]} 20. Qxd5 {[%clk 0:01:35.6]} 20... e3 {[%clk 0:01:10.6]} 21. Rxe3
{[%clk 0:01:32.4]} 21... Rxe3 {[%clk 0:01:08.9]} 22. fxe3 {[%clk 0:01:32.7]}
22... Bxh3 {[%clk 0:00:45.7]} 23. Qxf7+ {[%clk 0:01:15.3]} 23... Qxf7 {[%clk
0:00:45.4]} 24. Bxf7+ {[%clk 0:01:07]} 24... Kxf7 {[%clk 0:00:46.3]} 25. gxh3
{[%clk 0:01:07.7]} 25... Rd8 {[%clk 0:00:41.8]} 26. Ne4 {[%clk 0:01:06.2]} 26...
Ke6 {[%clk 0:00:36.3]} 27. Kf2 {[%clk 0:00:59.9]} 27... Ke5 {[%clk 0:00:29.3]}
28. Kf3 {[%clk 0:00:52.3]} 28... Be7 {[%clk 0:00:29.1]} 29. Nf2 {[%clk
0:00:49.9]} 29... Bh4 {[%clk 0:00:14.7]} 30. Ng4+ {[%clk 0:00:44]} 30... Ke6
{[%clk 0:00:14.9]} 31. Ke2 {[%clk 0:00:43.8]} 31... h5 {[%clk 0:00:14.8]} 32.
Nh2 {[%clk 0:00:43.9]} 32... Bg3 {[%clk 0:00:13.3]} 33. Nf3 {[%clk 0:00:43.3]}
33... Bc7 {[%clk 0:00:07]} 34. Rg1 {[%clk 0:00:42]} 34... Kf6 {[%clk 0:00:06.6]}
35. Nd4 {[%clk 0:00:41.6]} 35... g6 {[%clk 0:00:06.5]} 36. Rf1+ {[%clk
0:00:40.9]} 36... Ke7 {[%clk 0:00:06.9]} 37. a4 {[%clk 0:00:32.5]} 37... a6
{[%clk 0:00:07.5]} 38. b4 {[%clk 0:00:31.4]} 38... Rd6 {[%clk 0:00:07.4]} 39. a5
{[%clk 0:00:30.7]} 39... Rd5 {[%clk 0:00:07.7]} 40. Nb3 {[%clk 0:00:25.5]} 40...
Rg5 {[%clk 0:00:07.8]} 41. Nc5 {[%clk 0:00:22.2]} 41... Bxa5 {[%clk 0:00:08.1]}
42. Nxb7 {[%clk 0:00:20.1]} 42... Bb6 {[%clk 0:00:08.3]} 43. c4 {[%clk
0:00:16.5]} 43... Re5 {[%clk 0:00:05.9]} 44. c5 {[%clk 0:00:15.6]} 44... Bc7
{[%clk 0:00:06.4]} 45. Ra1 {[%clk 0:00:15.8]} 45... Kd7 {[%clk 0:00:04.1]} 46.
Rxa6 {[%clk 0:00:15.6]} 46... Kc8 {[%clk 0:00:04.2]} 47. Nd6+ {[%clk 0:00:13.5]}
47... Bxd6 {[%clk 0:00:02]} 48. Rxd6 {[%clk 0:00:13.3]} 48... g5 {[%clk
0:00:02.5]} 49. Rh6 {[%clk 0:00:12.8]} 49... Re4 {[%clk 0:00:02.9]} 50. b5
{[%clk 0:00:12.5]} 50... Rc4 {[%clk 0:00:02.7]} 51. c6 {[%clk 0:00:09.8]} 51...
Kc7 {[%clk 0:00:02.4]} 52. Rh7+ {[%clk 0:00:10.1]} 52... Kb6 {[%clk 0:00:02.4]}
53. Rb7+ {[%clk 0:00:09.8]} 53... Ka5 {[%clk 0:00:02.2]} 54. c7 {[%clk
0:00:10.2]} 54... g4 {[%clk 0:00:02.1]} 55. hxg4 {[%clk 0:00:10.5]} 55... hxg4
{[%clk 0:00:03]} 56. b6 {[%clk 0:00:10.9]} 56... Rc2+ {[%clk 0:00:03.6]} 57. Kf1
{[%clk 0:00:10.3]} 57... g3 {[%clk 0:00:03.7]} 58. Rb8 {[%clk 0:00:10.2]} 58...
g2+ {[%clk 0:00:04.3]} 59. Kg1 {[%clk 0:00:10.3]} 59... Ka6 {[%clk 0:00:04.5]}
60. c8=Q+ {[%clk 0:00:10.3]} 60... Rxc8 {[%clk 0:00:04.4]} 61. Rxc8 {[%clk
0:00:11.2]} 1-0

[Event "*** Titled Tuesday Blitz"]
[Site "Chess.com"]
[Date "2021.02.02"]
[Round "4"]
[White "Susik_Gaboyan"]
[Black "Gnechko_Ruslan"]
[Result "1-0"]
[WhiteElo "2309"]
[BlackElo "2496"]
[TimeControl "180+1"]
[EndTime "10:42:57 PST"]
[Termination "Susik_Gaboyan won by checkmate"]

1. Nf3 {[%clk 0:03:00.6]} 1... d5 {[%clk 0:02:59.3]} 2. d4 {[%clk 0:02:58.8]}
2... c5 {[%clk 0:02:59.3]} 3. c3 {[%clk 0:02:56.9]} 3... cxd4 {[%clk 0:02:58.8]}
4. cxd4 {[%clk 0:02:57.8]} 4... Nc6 {[%clk 0:02:59.4]} 5. Nc3 {[%clk 0:02:57.3]}
5... Bf5 {[%clk 0:02:59.3]} 6. Bf4 {[%clk 0:02:50.8]} 6... e6 {[%clk 0:02:55.9]}
7. e3 {[%clk 0:02:48.9]} 7... a6 {[%clk 0:02:55.5]} 8. Bd3 {[%clk 0:02:48.7]}
8... Bxd3 {[%clk 0:02:55.1]} 9. Qxd3 {[%clk 0:02:49.6]} 9... Nf6 {[%clk
0:02:55.7]} 10. O-O {[%clk 0:02:49.4]} 10... Be7 {[%clk 0:02:55.5]} 11. Rfc1
{[%clk 0:02:40.3]} 11... O-O {[%clk 0:02:55.7]} 12. Ne5 {[%clk 0:02:25]} 12...
Nxe5 {[%clk 0:02:53.8]} 13. Bxe5 {[%clk 0:02:25.9]} 13... Nd7 {[%clk 0:02:54]}
14. Bg3 {[%clk 0:02:23.6]} 14... Rc8 {[%clk 0:02:53.8]} 15. Na4 {[%clk 0:02:22]}
15... Qa5 {[%clk 0:02:49.1]} 16. Qb3 {[%clk 0:02:04.9]} 16... b5 {[%clk
0:02:47]} 17. Nc3 {[%clk 0:01:54.5]} 17... Rc4 {[%clk 0:02:46.4]} 18. f3 {[%clk
0:01:30.6]} 18... Rfc8 {[%clk 0:02:45.2]} 19. Be1 {[%clk 0:01:30]} 19... Qb6
{[%clk 0:02:35.8]} 20. Ne2 {[%clk 0:01:27.3]} 20... Bg5 {[%clk 0:02:25.2]} 21.
Qd3 {[%clk 0:01:08.4]} 21... f5 {[%clk 0:02:17]} 22. b3 {[%clk 0:01:07.7]} 22...
Rxc1 {[%clk 0:02:16.5]} 23. Rxc1 {[%clk 0:01:08.6]} 23... Rxc1 {[%clk
0:02:16.7]} 24. Nxc1 {[%clk 0:01:09.5]} 24... Qc6 {[%clk 0:02:17.2]} 25. Bd2
{[%clk 0:00:57.3]} 25... g6 {[%clk 0:02:15.5]} 26. Kf2 {[%clk 0:00:56.5]} 26...
Bh4+ {[%clk 0:02:14.4]} 27. Ke2 {[%clk 0:00:50.5]} 27... Kf7 {[%clk 0:02:14.7]}
28. Qc3 {[%clk 0:00:50]} 28... Qxc3 {[%clk 0:02:11.8]} 29. Bxc3 {[%clk
0:00:50.9]} 29... Be7 {[%clk 0:02:10.8]} 30. Nd3 {[%clk 0:00:44]} 30... Bd6
{[%clk 0:02:11.3]} 31. h3 {[%clk 0:00:32.4]} 31... g5 {[%clk 0:02:08.9]} 32. b4
{[%clk 0:00:27.7]} 32... Nb8 {[%clk 0:02:05]} 33. Nc5 {[%clk 0:00:27.2]} 33...
Bxc5 {[%clk 0:02:04.9]} 34. dxc5 {[%clk 0:00:11.9]} 34... Nc6 {[%clk 0:02:05.8]}
35. a3 {[%clk 0:00:11.6]} 35... e5 {[%clk 0:02:04.9]} 36. Kd3 {[%clk 0:00:11.4]}
36... Ke6 {[%clk 0:02:04.9]} 37. g4 {[%clk 0:00:10.6]} 37... e4+ {[%clk
0:01:51.7]} 38. Ke2 {[%clk 0:00:07.1]} 38... f4 {[%clk 0:01:18.6]} 39. Kf2
{[%clk 0:00:03.9]} 39... exf3 {[%clk 0:01:04.3]} 40. Kxf3 {[%clk 0:00:03.9]}
40... fxe3 {[%clk 0:00:53.9]} 41. Kxe3 {[%clk 0:00:04.8]} 41... Ne7 {[%clk
0:00:48.7]} 42. Kd4 {[%clk 0:00:04]} 42... Ng6 {[%clk 0:00:48]} 43. Bd2 {[%clk
0:00:03.3]} 43... h6 {[%clk 0:00:47.8]} 44. Be3 {[%clk 0:00:02.5]} 44... Nh4
{[%clk 0:00:47.3]} 45. c6 {[%clk 0:00:02.4]} 45... Nf3+ {[%clk 0:00:42.3]} 46.
Kc5 {[%clk 0:00:01.6]} 46... Ne5 {[%clk 0:00:34]} 47. Kb6 {[%clk 0:00:01.7]}
47... Nc4+ {[%clk 0:00:29.4]} 48. Kb7 {[%clk 0:00:01.3]} 48... Nd6+ {[%clk
0:00:23.3]} 49. Kb8 {[%clk 0:00:01.1]} 49... Kf7 {[%clk 0:00:06.2]} 50. Bc5
{[%clk 0:00:01.4]} 50... Ne8 {[%clk 0:00:04.9]} 51. c7 {[%clk 0:00:01.6]} 51...
Nxc7 {[%clk 0:00:05.2]} 52. Kxc7 {[%clk 0:00:02.5]} 52... Ke6 {[%clk 0:00:06.1]}
53. Kb6 {[%clk 0:00:03.1]} 53... Ke5 {[%clk 0:00:07]} 54. Kxa6 {[%clk
0:00:03.8]} 54... d4 {[%clk 0:00:07.9]} 55. Kxb5 {[%clk 0:00:03.1]} 55... d3
{[%clk 0:00:07.9]} 56. Be3 {[%clk 0:00:03.7]} 56... Ke4 {[%clk 0:00:08.8]} 57.
Bc1 {[%clk 0:00:04.1]} 57... Kf3 {[%clk 0:00:09.7]} 58. a4 {[%clk 0:00:04.6]}
58... Kg3 {[%clk 0:00:10.6]} 59. a5 {[%clk 0:00:04.8]} 59... Kxh3 {[%clk
0:00:11.5]} 60. a6 {[%clk 0:00:05.7]} 60... Kxg4 {[%clk 0:00:12.4]} 61. a7
{[%clk 0:00:06.6]} 61... h5 {[%clk 0:00:13.3]} 62. a8=Q {[%clk 0:00:07.5]} 62...
h4 {[%clk 0:00:14.2]} 63. Qg2+ {[%clk 0:00:07.7]} 63... Kh5 {[%clk 0:00:14.2]}
64. Qxg5# {[%clk 0:00:08.2]} 1-0